Cogmind - Beta 15 @@@ ROGUE MODE // 2025.10.03 @ 23:56:19 Player: chebyrekser Result: Destroyed by P-80 Master with Gamma Rifle Performance ------------- Evolutions (8) 4000 Regions Visited (27) 5400 Robots Destroyed (434) 2170 Value Destroyed (25001) 25001 Prototype IDs (37) 740 Alien Tech Used (6) 1200 Bonus (10242) 10242 TOTAL SCORE: 48753 Bonus ------- High Alert Combat Kills 763 Follower Combat Kills 1791 Entered Garrisons 1800 Used RIF Installer 5000 Scanned by Researcher 500 Pursued by Intercept 500 Friendly Fire -112 Cogmind --------- Core Integrity 0/1450 Matter 206/300 Energy 100/100 System Corruption 58% Temperature Cool (5) Movement Core (1350) Ox26 +NEM 1 Location -2/Section 7 Parts ------- > --- POWER (4) -------- (None) > --- PROPULSION (6) --- (None) > --- UTILITY (10) ----- Huge Storage Unit Advanced Signal Interpreter Relay Coupler [Grunt] (11) > --- WEAPON (3) ------- (None) > --- INVENTORY (25) --- Advanced Power Amplifier Advanced Cooling System Advanced Energy Well (58) Matter Compressor (250) Advanced Sensor Array Centrium Medium Armor Plating Centrium Medium Armor Plating Experimental EM Shield Experimental Force Field Advanced Point Defense System Splice Drone Bay (2/6) Subatomic Replicator Gamma Rifle Compact HERF Cannon Hypervelocity Railgun Hypervelocity Multirail Perforator Compact Tesla Bomb Launcher Compact Tesla Bomb Launcher Advanced Remote Datajack Plasma Cutter Core Stripper Peak State ------------ > --- POWER ------------ Particle Reactor Quantum Reactor Vortex Chain Reactor > --- PROPULSION ------- High-density Centrium Heavy Treads High-density Centrium Heavy Treads High-density Centrium Heavy Treads > --- UTILITY ---------- Advanced Heat Sink Advanced Cooling System Huge Storage Unit Advanced Signal Interpreter Core Analyzer Centrium Medium Armor Plating Centrium Medium Armor Plating Advanced Force Field Relay Coupler [NC] Relay Coupler [Grunt] > --- WEAPON ----------- Graviton Cannon Core Stripper > --- INVENTORY -------- Reinforced Antimatter Reactor Enhanced Armored Heavy Treads Advanced Power Amplifier Advanced Energy Well Matter Compressor Advanced Sensor Array Centrium Medium Armor Plating Graphene Brace Experimental EM Shield Experimental Force Field Advanced Point Defense System Ghost Barrier Splice Drone Bay Subatomic Replicator Compact HERF Cannon Enhanced Nova Cannon Enhanced Nova Cannon Hypervelocity Multirail Perforator Compact Tesla Bomb Launcher Compact Tesla Bomb Launcher Advanced Remote Datajack Plasma Cutter [Rating: 207] Favorites ----------- Power Particle Reactor Engine Heavy Deuterium Engine Power Core Neutrino Core Reactor Particle Reactor Propulsion Light Treads Treads Light Treads Leg Improved Carbon-fiber Leg Wheel Armored Wheel Utility Huge Storage Unit Device Improved Cooling System Storage Huge Storage Unit Processor Core Analyzer Hackware Relay Coupler [Grunt] Protection Improved Light Armor Plating Weapon Heavy Ion Cannon Energy Gun Enhanced Quantum Rifle Energy Cannon Heavy Ion Cannon Ballistic Gun Improved Assault Rifle Ballistic Cannon Enhanced Hardcell Cannon Launcher Compact Tesla Bomb Launcher Special Weapon Advanced Remote Datajack Impact Weapon Power Maul Build | -11 -10 -10 -9 -9 -8 -8 -8 -8 -8 -8 -7 -7 -6 -6 -6 -6 -5 -5 -4 -4 -3 -3 -2 -2 -2 -2 -2 ------- Run | Yrd Mat Min Mat Min Mat Gar Mat Gar Mat Gar Fac Gar Fac Gar Fac Gar Fac Gar Fac Gar Res Qua Res Gar Res Tes Sec Slots Evolved 16 | . . . 2 . 2 . . . . . 2 . 2 . . . 2 . 2 . 2 . 2 . . . . Power 3 | . . . . . . . . . . . . . . . . . 1 . . . 1 . 1 . . . . Propulsion 4 | . . . 1 . 1 . . . . . . . 1 . . . . . 1 . . . . . . . . Utility 8 | . . . 1 . 1 . . . . . 1 . 1 . . . 1 . 1 . 1 . 1 . . . . Weapon 1 | . . . . . . . . . . . 1 . . . . . . . . . . . . . . . . Parts Attached 332 | 7 9 1 38 . 22 4 2 11 10 5 18 8 9 12 1 8 10 14 20 12 10 16 15 18 11 23 18 Power 48 | 1 2 . 6 . 1 . 1 1 2 . 4 . . . . 1 2 3 1 2 4 1 4 4 1 2 5 Engine 22 | 1 2 . 6 . 1 . 1 1 1 . 4 . . . . 1 1 2 . 1 . . . . . . . Core 3 | . . . . . . . . . 1 . . . . . . . 1 . 1 . . . . . . . . Reactor 23 | . . . . . . . . . . . . . . . . . . 1 . 1 4 1 4 4 1 2 5 Propulsion 62 | 2 1 . 15 . 5 . . 3 1 1 2 3 2 5 . 1 3 1 3 2 . 2 4 2 1 3 . Treads 46 | 1 1 . 10 . 4 . . 1 1 1 . 3 . 2 . 1 3 1 3 2 . 2 4 2 1 3 . Leg 6 | . . . . . . . . . . . 1 . 2 3 . . . . . . . . . . . . . Wheel 10 | 1 . . 5 . 1 . . 2 . . 1 . . . . . . . . . . . . . . . . Hover . | . . . . . . . . . . . . . . . . . . . . . . . . . . . . Flight . | . . . . . . . . . . . . . . . . . . . . . . . . . . . . Utility 133 | 2 3 1 4 . 10 1 1 4 6 2 9 3 3 5 1 4 5 6 9 5 3 9 3 9 8 12 5 Device 55 | 1 1 1 2 . 6 . . . 1 1 3 1 2 1 . . 3 1 3 2 2 4 2 5 4 5 4 Storage 7 | 1 1 . . . . . . 1 . . 1 . . . . . . . . . . 1 . . . 2 . Processor 6 | . . . . . 1 . . 1 . . 1 . . . . 1 . . 2 . . . . . . . . Hackware 34 | . . . . . . . . 2 3 1 2 1 1 3 1 2 2 3 3 1 . 4 1 1 2 . 1 Protection 31 | . 1 . 2 . 3 1 1 . 2 . 2 1 . 1 . 1 . 2 1 2 1 . . 3 2 5 . Artifact . | . . . . . . . . . . . . . . . . . . . . . . . . . . . . Weapon 89 | 2 3 . 13 . 6 3 . 3 1 2 3 2 4 2 . 2 . 4 7 3 3 4 4 3 1 6 8 Energy Gun 16 | . 1 . 3 . 2 . . . . . . 1 . . . . . . 1 1 2 1 1 . . 1 2 Energy Cannon 20 | . . . 3 . 2 . . 1 . 1 1 . 2 1 . . . 3 . . 1 2 . 1 . 1 1 Ballistic Gun 20 | 2 . . 6 . . 1 . 1 1 . . . 1 . . 2 . . 2 . . . . . . 1 3 Ballistic Cannon 14 | . . . . . . . . . . 1 1 . 1 . . . . 1 1 . . 1 2 1 1 3 1 Launcher 9 | . . . 1 . 1 2 . . . . . 1 . . . . . . 2 2 . . . . . . . Special Weapon 7 | . 1 . . . . . . 1 . . 1 . . 1 . . . . 1 . . . 1 . . . 1 Impact Weapon 3 | . 1 . . . 1 . . . . . . . . . . . . . . . . . . 1 . . . Slashing Weapon . | . . . . . . . . . . . . . . . . . . . . . . . . . . . . Piercing Weapon . | . . . . . . . . . . . . . . . . . . . . . . . . . . . . Special Melee Weapon . | . . . . . . . . . . . . . . . . . . . . . . . . . . . . Unidentified Prototypes 31 | . . 1 3 . 1 . . . . . . . . . . . . 1 1 . 2 2 2 1 . 14 3 Corrupted Parts 2 | . . . . . . . . . . . . . . . . . . . . 1 . . . . . . 1 System Corruption 16 | . . . . . . . . . . . . . . . . . . . . 15 . . . . . . 1 Parts Lost 77 | . . . 7 . . . . 4 1 2 . 4 . 2 . 7 5 2 1 6 . 1 4 9 1 . 21 Power 14 | . . . 1 . . . . 1 . . . . . . . 1 . 1 . 1 . . 1 3 . . 5 Propulsion 19 | . . . 3 . . . . 1 1 1 . 3 . . . 2 2 . . 2 . . . . . . 4 Utility 32 | . . . 2 . . . . 2 . 1 . . . 1 . 2 3 1 1 2 . 1 3 4 1 . 8 Weapon 12 | . . . 1 . . . . . . . . 1 . 1 . 2 . . . 1 . . . 2 . . 4 Highest Loss Streak 17 | . . . 3 . . . . 1 1 1 . 2 . 2 . 4 2 2 1 2 . 1 2 4 1 . 17 To Critical Strikes 1 | . . . . . . . . . . . . . . . . . . . . 1 . . . . . . . Average Backups 21 | 5 9 19 19 20 19 19 18 19 19 19 21 24 24 22 22 20 20 22 22 22 24 24 22 22 21 22 21 Power 1 | . 1 2 2 2 1 2 1 . 1 1 1 3 3 3 3 2 2 2 2 2 1 1 1 1 2 1 . Propulsion 2 | 3 4 8 3 4 3 3 3 1 . . . 1 3 3 3 3 1 2 2 1 . . . 1 2 1 . Utility 9 | . 2 3 6 7 6 7 8 9 10 9 10 12 11 11 10 9 10 10 9 10 12 12 10 8 8 9 9 Weapon 5 | . 2 3 6 6 6 5 5 5 6 6 6 5 4 3 4 4 5 5 6 6 7 7 6 7 7 7 7 Tool/Special . | . . . . . . . . . . . . . . . . . . . . . . . . . . . . Unused Backups 71 | . 2 1 15 2 4 . 2 4 2 1 4 1 3 6 1 2 . 7 1 1 . 3 . . 2 2 5 Power 7 | . . . 2 1 . . 1 . . . 1 . . . . . . . . . . . . . 1 1 . Propulsion 21 | . 2 1 7 . 1 . . 1 . . . . 1 4 . 1 . 1 . . . 2 . . . . . Utility 29 | . . . 2 . 3 . 1 3 2 . 1 1 2 2 1 1 . 3 1 1 . . . . 1 1 3 Weapon 12 | . . . 4 1 . . . . . 1 1 . . . . . . 3 . . . 1 . . . . 1 Tool/Special 2 | . . . . . . . . . . . 1 . . . . . . . . . . . . . . . 1 Average Slot Usage (%) 89 | . 100 100 95 100 94 90 90 94 99 99 99 99 97 90 86 76 71 81 83 78 81 86 85 74 81 83 81 Engine 5 | . 14 14 11 11 9 9 9 9 7 9 7 7 6 6 6 5 5 10 . 4 1 . . . . . . Reactor 4 | . . . . . . . . . . . . . . . . . . . 5 . 8 13 16 14 17 16 13 Treads 15 | . 14 14 20 22 22 18 18 18 17 18 8 21 19 11 13 13 11 17 15 13 11 15 13 13 13 12 12 Leg 1 | . . . . . . . . . . . 6 6 12 12 6 3 . . . . . . . . . . . Wheel 5 | . 14 14 12 11 9 9 9 13 18 18 15 1 . . . . . . . . . . . . . . . Device 10 | . 12 14 14 22 15 9 9 9 10 4 6 . 6 6 7 4 8 8 10 8 13 13 16 12 14 13 11 Storage 6 | . 14 14 11 11 9 9 9 9 9 9 7 7 6 6 6 6 5 5 5 5 4 4 4 4 4 4 4 Processor 6 | . . . . . 7 9 9 8 . . 6 7 6 6 6 11 7 5 6 10 9 9 8 8 8 8 7 Hackware 7 | . . . . . . . . 1 15 18 15 11 11 12 17 9 9 11 13 10 9 9 8 5 6 8 12 Protection 4 | . 1 . 3 . 2 9 9 7 . 4 1 10 5 6 . 4 1 2 5 3 4 3 3 3 4 5 4 Energy Gun 2 | . 7 2 2 . . . . . . . . . 5 2 . . . . 3 2 3 4 4 4 . 2 1 Energy Cannon 5 | . . . 6 11 5 8 8 7 7 8 7 13 4 8 11 5 5 15 2 2 2 3 4 3 4 4 4 Ballistic Gun 5 | . 16 14 11 11 9 9 9 8 9 7 7 2 . . . 4 9 1 4 4 3 1 . . . . 2 Ballistic Cannon 1 | . . . . . . . . . . 1 3 2 6 3 6 2 . . 4 3 . 2 2 3 4 1 2 Peak Build Rating 207 | 7 8 15 25 25 41 41 40 42 39 38 45 45 54 82 82 84 79 106 126 128 150 158 187 192 180 207 199 Average Rating 84 | 5 7 9 18 25 34 40 39 39 37 34 43 42 50 73 80 75 75 86 115 114 134 150 180 167 177 180 191 On Entrance 75 | . 7 8 15 25 25 41 38 40 35 36 33 44 44 52 82 81 74 77 106 126 110 144 154 161 180 179 198 Naked Turns . | . . . . . . . . . . . . . . . . . . . . . . . . . . . . Heaviest Build 233 | 15 50 57 59 57 66 66 70 71 66 68 110 120 116 126 124 135 123 152 157 157 171 184 202 213 231 233 216 Greatest Support 270 | 20 16 16 40 12 40 28 28 28 24 40 28 60 60 150 150 150 173 185 225 220 225 225 235 235 235 270 270 Greatest Overweight (x) 9 | . 3 3 5 4 5 2 2 5 2 2 4 9 1 1 . . . . 1 1 1 . 1 . 1 1 1 Average Overweight (x) 1 | . . 3 3 4 3 2 2 2 2 1 2 2 1 . . . . . . . . . . . . . . Largest Inventory Capacity 25 | 8 20 20 20 20 20 20 20 20 20 20 25 25 25 25 25 25 25 25 25 25 25 25 25 25 25 25 25 Average Capacity 22 | 7 14 20 20 20 20 20 20 20 20 20 21 25 25 25 25 25 25 25 25 25 25 25 25 25 25 25 25 Most Carried 25 | 8 16 20 20 20 20 20 20 20 20 20 25 25 25 25 25 25 23 25 25 25 25 25 25 25 25 25 25 Average Carried 22 | 5 9 19 19 19 19 19 19 19 19 19 21 24 24 24 25 22 21 24 24 24 24 24 24 24 24 24 24 Final Capacity 25 | 8 20 20 20 20 20 20 20 20 20 20 25 25 25 25 25 25 25 25 25 25 25 25 25 25 25 25 25 Final Carried 25 | 8 16 20 20 20 20 20 20 20 20 20 25 25 25 25 25 23 22 25 25 25 25 25 25 25 25 25 24 Class Distribution -------------------- 23% | Mutant 15% | Botlord-Tank 14% | Generator-Tank 11% | Botlord-Skirmisher 10% | Scavenger-Mutant 7% | Bothacker-Skirmisher 4% | Bothacker-Mutant 3% | Scavenger-Tank 3% | Bothacker-Tank Dominant Class ---------------- Mutant | -10/Materials Mutant | -10/Mines Scavenger-Mutant | -9/Materials Mutant | -9/Mines Mutant | -8/Materials Mutant | -8/Garrison Mutant | -8/Materials Mutant | -8/Garrison Scavenger-Mutant | -8/Materials Bothacker-Mutant | -8/Garrison Scavenger-Mutant | -7/Factory Scavenger-Tank | -7/Garrison Bothacker-Skirmisher | -6/Factory Botlord-Tank | -6/Garrison Bothacker-Skirmisher | -6/Factory Bothacker-Tank | -6/Garrison Botlord-Tank | -5/Factory Botlord-Tank | -5/Garrison Botlord-Tank | -4/Factory Botlord-Tank | -4/Garrison Botlord-Skirmisher | -3/Research Botlord-Skirmisher | -3/Quarantine Botlord-Skirmisher | -2/Research Generator-Tank | -2/Garrison Generator-Tank | -2/Research Generator-Tank | -2/Testing Generator-Tank | -2/Section 7 Resources | -11 -10 -10 -9 -9 -8 -8 -8 -8 -8 -8 -7 -7 -6 -6 -6 -6 -5 -5 -4 -4 -3 -3 -2 -2 -2 -2 -2 ----------- Run | Yrd Mat Min Mat Min Mat Gar Mat Gar Mat Gar Fac Gar Fac Gar Fac Gar Fac Gar Fac Gar Res Qua Res Gar Res Tes Sec Matter Collected 17749 | 321 453 226 998 37 678 251 142 748 447 602 423 697 436 443 218 1058 586 335 776 1322 498 961 1132 674 549 1292 1446 Remotely . | . . . . . . . . . . . . . . . . . . . . . . . . . . . . Salvage Created 23769 | 153 633 35 1499 88 908 357 332 1223 246 566 799 446 248 830 67 439 728 1304 502 1335 422 1459 2206 1535 646 1773 2990 Parts 1103 | 14 47 3 110 2 46 25 24 53 18 29 38 29 10 43 7 14 23 48 15 51 11 82 91 61 15 68 126 Haulers Intercepted 9 | . 2 . 4 . 1 . 1 . . . . . . . . . . . . . . . 1 . . . . Recyclers Shooed 21 | . 1 . . . 2 . . . 1 . 3 . 1 . . . 1 . 2 . 3 . 4 . 1 2 . Parts Field Recycled . | . . . . . . . . . . . . . . . . . . . . . . . . . . . . Retrieved Matter . | . . . . . . . . . . . . . . . . . . . . . . . . . . . . Parts Self-Destructed . | . . . . . . . . . . . . . . . . . . . . . . . . . . . . Prevented . | . . . . . . . . . . . . . . . . . . . . . . . . . . . . Kills | -11 -10 -10 -9 -9 -8 -8 -8 -8 -8 -8 -7 -7 -6 -6 -6 -6 -5 -5 -4 -4 -3 -3 -2 -2 -2 -2 -2 ------- Run | Yrd Mat Min Mat Min Mat Gar Mat Gar Mat Gar Fac Gar Fac Gar Fac Gar Fac Gar Fac Gar Res Qua Res Gar Res Tes Sec Combat Hostiles Destroyed 345 | . 14 1 26 . 14 14 4 29 4 17 6 13 1 18 1 17 10 15 8 23 1 17 20 19 5 15 33 Melee 1 | . . . . . 1 . . . . . . . . . . . . . . . . . . . . . . Guns 85 | . 14 1 16 . 4 1 1 1 4 2 1 . 1 . . 4 5 . 4 3 1 4 4 3 . . 11 Cannons 107 | . . . 3 . 6 4 3 11 . 6 4 3 . 4 1 7 5 2 4 7 . 9 11 6 . 6 5 AOE 97 | . . . 7 . 3 9 . 14 . 8 . 10 . 14 . 6 . 6 . 7 . 1 2 3 2 2 3 Classes Destroyed 24 | 2 6 . 4 . 1 . . 1 . . . 2 . 2 . 1 . . . . . . . 1 . 1 3 Worker 14 | . 2 1 3 . . . 3 . . . 1 . . . . . . . . . . . 1 . . 2 1 Builder 9 | . . . 1 . 1 . . . . . . . 1 . . . . . . . . . 1 . . 4 1 Tunneler 11 | 5 1 . 4 . . . . . . . . . . . . . . . . . 1 . . . . . . Hauler 9 | . 2 . 4 . 1 . 1 . . . . . . . . . . . . . . . 1 . . . . Recycler 29 | 1 1 . 1 1 2 . . . 1 . 5 . 2 . . . 2 . 1 . 2 2 4 . 2 2 . Mechanic 1 | . . . 1 . . . . . . . . . . . . . . . . . . . . . . . . Operator 3 | . 1 . 1 . . . . . . . . . . . . . . . . . . . . . . . 1 Watcher 12 | . 1 . 4 . . . . . 2 . . . . . 1 . . . . . . 1 2 . . . 1 Swarmer 64 | . 6 1 7 . . 7 . 7 2 . . 4 1 11 . 5 1 4 . 3 . . . . . 5 . Cutter 4 | . . . . . . . . . . . . . . . . . . . . . . . . 4 . . . Saboteur 3 | . . . . . . . . . . . . . . 3 . . . . . . . . . . . . . Grunt 109 | . 8 . 9 . 7 6 2 12 . 10 1 4 . 1 . 7 4 6 . 9 . 6 4 2 . 2 9 Brawler 6 | . . . . . . . . . . . . 1 . . . . 1 3 . . . . . . . 1 . Duelist 9 | . . . 2 . . . . 1 . . . . . . . 1 2 . . 1 . 1 1 . . . . Researcher 1 | . . . . . . . . . . . . . . . . . . . . . . . . . . . 1 Sentry 45 | . . . 8 . 4 1 2 1 2 1 3 1 . . . 2 . . 3 4 1 . 2 4 1 . 5 Specialist 4 | . . . . . . . . . . . . 2 . . . . . . . . . . . . . . 2 Hunter 32 | . . . . . 3 . . 3 . . . 2 . . . . . 1 . . . . 5 4 4 2 8 Programmer 60 | . . . . . . . . 5 . 6 2 . . 1 1 2 2 . 5 5 . 10 8 4 . 4 5 Heavy 1 | . . . . . . . . . . . . . . . . . . . . . . . . . . . 1 Behemoth 4 | . . . . . . . . . . . . . . . . 1 . 1 . 1 . . . 1 . . . S7 Guard 1 | . . . . . . . . . . . . . . . . . . . . . . . . . . . 1 Executioner 2 | . . . . . . . . . . . . . . . . . . . . . . . . . . . 2 Fortress 1 | . . . . . . . . . . . . . . . . . . . . . . . . . . 1 . Assembled 2 | . . . . . . . . . . . . . . 2 . . . . . . . . . . . . . Best Kill Streak 11 | 3 4 1 7 1 3 7 5 5 3 8 3 6 1 7 1 4 3 4 3 9 2 6 4 7 3 11 5 Combat Bots Only 9 | . 3 1 6 . 3 7 2 5 3 8 1 6 1 7 1 4 3 4 3 9 1 6 4 7 3 7 5 Max Kills in Single Turn 4 | 1 2 1 4 1 1 3 2 3 1 2 1 2 1 3 1 2 1 3 1 2 1 2 2 1 2 2 2 Gunslinging 1 | . 1 . . . . . . . . . . . . . . . . . . . . . . . . . . Exploded 3 | . . . 3 . 1 3 . 3 . 2 . 2 . 3 . 2 . 3 . 2 . 1 2 1 2 1 1 Melee 1 | . . . . . 1 . . . . . . . . . . . . . . . . . . . . . . Uniques/NPCs Destroyed . | . . . . . . . . . . . . . . . . . . . . . . . . . . . . Combat | -11 -10 -10 -9 -9 -8 -8 -8 -8 -8 -8 -7 -7 -6 -6 -6 -6 -5 -5 -4 -4 -3 -3 -2 -2 -2 -2 -2 -------- Run | Yrd Mat Min Mat Min Mat Gar Mat Gar Mat Gar Fac Gar Fac Gar Fac Gar Fac Gar Fac Gar Res Qua Res Gar Res Tes Sec Hostile Shots Fired 2776 | . 75 5 111 . 65 28 14 120 38 88 133 47 4 24 4 248 90 41 74 225 6 83 160 129 52 128 784 Missed 773 | . 21 1 22 . 19 8 8 31 9 31 63 11 1 8 1 69 15 11 13 60 4 21 43 32 14 33 224 Hits 2003 | . 54 4 89 . 46 20 6 89 29 57 70 36 3 16 3 179 75 30 61 165 2 62 117 97 38 95 560 Melee 31 | . . . 5 . . . . . . . . . 2 . . 1 14 . . 1 . 3 . 3 . 2 . Projectile 1972 | . 54 4 84 . 46 20 6 89 29 57 70 36 1 16 3 178 61 30 61 164 2 59 117 94 38 93 560 AOE 3 | . . . . . . . . . . . . . . . . . . . . . . . . 3 . . . Critical Strikes 106 | . . . 3 . 2 . 2 9 1 1 . . . . . 3 8 . 6 12 . 5 7 7 2 6 32 Actively Blocked 1 | . . . . . . . . . . . . . . . . . . . . . . . . 1 . . . Part Disruptions 7 | . . . . . . . . . . . . . . . . . 1 . 1 . . . . 1 . 1 3 Damage Taken 30671 | . 544 32 1283 . 729 299 128 1313 323 862 600 616 65 355 51 2125 1373 603 831 3135 114 923 1995 2579 964 1309 7520 Core 2809 | . 150 8 210 . 128 39 . 93 67 74 73 42 . 13 . 190 98 47 33 95 28 58 36 144 37 77 1069 Absorbed by Shields 8306 | . . . . . . . . 30 . 4 . . . . . . 309 15 504 412 11 589 757 . 101 1064 4510 Reduced by Siege Mode 1224 | . . . . . . . . . . . . . . . . 81 95 5 62 454 . 41 . 145 . 71 270 Redirected to Shielding 2 | . . . 2 . . . . . . . . . . . . . . . . . . . . . . . . Ignored by Resistances 569 | . . . . . . . . . . . 14 . . . . 122 . . . . . . . . . . 433 Regen/Repaired (Parts) 1696 | . . . . . . . . . . . 128 . 109 . . . . . 251 . 566 366 154 . 122 . . Core Remaining (%) 70 | 100 . 36 . 47 . . . . . 27 . 83 . . . 76 . 85 . 88 . 88 . . . . . Volleys Fired 1600 | 10 63 2 85 1 52 41 12 111 52 52 52 29 37 54 25 73 47 92 74 78 43 80 100 65 32 73 165 Largest 3 | 2 2 2 2 2 2 2 2 2 2 2 3 3 3 3 3 3 3 3 3 3 3 3 3 3 2 3 3 Hottest 275 | 40 100 70 91 91 91 88 88 88 88 88 125 130 210 220 220 220 153 240 156 186 208 243 253 243 214 243 275 Shots Fired 2537 | 20 120 4 165 2 93 57 24 150 80 73 69 40 47 82 28 131 96 121 127 123 55 130 175 105 34 102 284 Gun 950 | 20 119 4 126 1 43 17 12 49 28 27 16 3 7 . . 31 49 4 85 50 22 43 39 25 . 14 116 Cannon 1295 | . . . 33 1 50 35 11 81 42 30 43 24 34 69 24 76 33 111 33 47 24 77 115 59 30 73 140 Launcher 134 | . . . 6 . . 5 1 10 . 13 . 11 . 8 . 8 . 4 . 21 . 6 3 7 1 9 21 Special 158 | . 1 . . . . . . 10 10 3 10 2 6 5 4 16 14 2 9 5 9 4 18 14 3 6 7 Kinetic 839 | 20 88 2 87 1 43 17 12 49 28 27 20 6 8 7 2 56 49 4 66 50 5 25 22 24 4 15 102 Thermal 1148 | . 32 2 72 1 41 35 11 66 42 30 28 13 33 62 22 51 33 61 52 23 39 83 88 45 16 53 114 Explosive 71 | . . . 6 . . 5 1 10 . 13 . 11 . 8 . 8 . 4 . 5 . . . . . . . Electromagnetic 322 | . . . . . 9 . . 15 . . 11 8 . . . . . 50 . 40 2 18 47 22 11 28 61 Robot Hit Streak 27 | 3 18 2 14 1 9 9 5 15 6 11 10 8 11 13 2 17 12 21 12 10 27 12 12 13 5 11 13 Robot Miss Streak 9 | 3 3 1 3 1 3 3 4 4 4 3 3 3 2 3 2 2 5 2 3 2 1 6 4 3 3 4 9 Penetration Max 1 | . . . . . . . . . . . . . . . . . 1 . 1 1 . . . . . . 1 Secondary Targets 8 | . 2 . 2 . . . . . . . . . . . . . . . . . . 2 . . . . 2 Max Gunslinging Chain 1 | . 1 . 1 . . . . . . . . . . . . . . . . . . 1 . . . . 1 Shots Hit Robots 1358 | 9 75 3 101 1 61 24 10 84 37 33 40 19 19 37 7 81 71 87 71 67 31 52 75 64 14 47 138 Core Hits 737 | 7 32 1 53 1 29 24 10 53 10 30 16 26 12 33 3 36 45 35 17 44 8 34 44 32 8 26 68 Critical Kills 18 | . . . . . 1 . . 2 . 1 . . . 2 . . . 1 . . . . . . 1 . 10 Critical Parts Destroyed 13 | . . . . . . . . . . . 2 . . . . . . . 1 1 . . . . . . 9 Critical Strikes 47 | . 2 . . . 1 . . 2 . 1 3 . 1 2 . 2 . 3 1 1 1 2 1 2 2 1 19 Burn 3 | . 2 . . . . . . . . . . . . . . . . . . . 1 . . . . . . Meltdown 8 | . . . . . . . . 1 . 1 . . . 2 . . . 1 . . . . . . 1 . 2 Destroy 19 | . . . . . . . . . . . . . . . . . . . 1 1 . . . . . . 17 Blast 8 | . . . . . . . . . . . . . 1 . . 2 . . . . . 1 1 1 1 1 . Corrupt 5 | . . . . . . . . . . . 1 . . . . . . 2 . . . 1 . 1 . . . Smash 4 | . . . . . 1 . . 1 . . 2 . . . . . . . . . . . . . . . . Melee Attacks 79 | . 14 10 25 . 14 3 . 4 . . 7 . . . . . . . . . . . . 1 . 1 . Kinetic 2 | . . . . . . . . . . . . . . . . . . . . . . . . 1 . 1 . Impact 77 | . 14 10 25 . 14 3 . 4 . . 7 . . . . . . . . . . . . . . . . Slashing . | . . . . . . . . . . . . . . . . . . . . . . . . . . . . Piercing . | . . . . . . . . . . . . . . . . . . . . . . . . . . . . Sneak Attacks 7 | . 2 1 1 . 1 . . . . . 2 . . . . . . . . . . . . . . . . Combat Hostiles 1 | . . . . . 1 . . . . . . . . . . . . . . . . . . . . . . Follow-up Attacks . | . . . . . . . . . . . . . . . . . . . . . . . . . . . . Damage Inflicted 49619 | 125 1089 71 2240 15 1658 1192 409 3397 626 1550 930 1156 370 2359 133 3326 1701 3376 2184 3467 722 2428 3076 2841 912 2733 5533 Guns 11602 | 125 991 27 1204 15 425 151 88 428 243 238 139 47 167 . . 444 883 . 1304 774 450 712 640 661 . 231 1215 Cannons 22951 | . . . 492 . 800 326 217 1439 383 368 586 310 203 1143 133 1499 818 2593 880 844 272 1150 2115 1375 549 1686 2770 Explosions 14289 | . . . 471 . 378 715 104 1229 . 944 . 799 . 1216 . 1383 . 783 . 1849 . 566 321 805 363 816 1547 Melee 776 | . 98 44 73 . 55 . . 301 . . 205 . . . . . . . . . . . . . . . . Ramming 1 | . . . . . . . . . . . . . . . . . . . . . . . . . . . 1 Kinetic 11793 | 125 711 27 815 15 425 151 88 428 243 238 186 97 98 50 27 966 883 . 1527 874 96 611 345 707 129 509 1422 Thermal 17584 | . 280 . 881 . 731 326 217 1179 383 368 348 140 272 1093 106 977 818 1464 657 434 562 963 1400 965 169 947 1904 Explosive 8970 | . . . 471 . 326 715 104 1229 . 944 . 799 . 1216 . 1383 . 783 . 707 . . . . 293 . . Electromagnetic 10495 | . . . . . 121 . . 260 . . 191 120 . . . . . 1129 . 1452 64 854 1331 1169 321 1277 2206 Impact 776 | . 98 44 73 . 55 . . 301 . . 205 . . . . . . . . . . . . . . . . Slashing . | . . . . . . . . . . . . . . . . . . . . . . . . . . . . Piercing . | . . . . . . . . . . . . . . . . . . . . . . . . . . . . Highest Corruption 57 | . . . 4 4 5 5 5 12 12 18 2 2 . . 1 5 5 5 4 31 . 17 8 20 20 24 57 Average Corruption 10 | . . . 3 4 5 5 5 10 12 16 2 1 . . 1 3 4 5 3 17 . 10 4 18 20 22 32 Corruption Purged 1 | . . . . . . . . . . . . 1 . . . . . . . . . . . . . . . Corruption Blocked . | . . . . . . . . . . . . . . . . . . . . . . . . . . . . Effects 741 | . . . 31 14 44 21 13 61 38 31 12 13 . . 4 23 2 37 9 55 . 53 21 39 43 68 109 Message Errors 184 | . . . 8 3 9 6 6 15 12 9 2 3 . . 1 6 1 10 3 11 . 15 2 11 9 23 19 Matter Fused 159 | . . . 8 4 11 8 2 9 7 5 3 3 . . 2 7 1 7 1 16 . 11 3 8 9 13 21 Heat Flow Errors 80 | . . . 1 1 5 1 3 6 4 3 1 2 . . . 4 . 3 1 6 . 8 4 6 3 6 12 Energy Discharges 94 | . . . 5 2 8 2 1 8 3 4 3 2 . . 1 2 . 3 2 7 . 6 3 5 6 9 12 Parts Rejected 10 | . . . . . . 1 . . . . . . . . . . . . . . . 2 . 2 . 1 4 Parts Fused 7 | . . . 1 1 . . . . 1 . . . . . . . . 1 . . . . 1 . 1 . 1 Data Loss (minor) 73 | . . . 3 2 5 . . 6 5 2 2 . . . . 2 . 6 1 4 . 5 3 2 7 9 9 Data Loss (major) 30 | . . . 4 1 1 1 . 2 2 2 . . . . . . . 2 . 2 . 1 2 2 3 . 5 Misfires 33 | . . . 1 . 3 1 1 2 2 2 . 1 . . . 2 . . 1 4 . 3 3 1 1 4 1 Alerts 16 | . . . . . 1 1 . 3 . . 1 2 . . . . . 2 . . . . . 2 1 1 2 Misdirections 7 | . . . . . . . . 1 . . . . . . . . . . . 1 . . . . . 1 4 Weapon Failures 48 | . . . . . 1 . . 9 2 4 . . . . . . . 3 . 4 . 2 . . 3 1 19 Overload Shots . | . . . . . . . . . . . . . . . . . . . . . . . . . . . . Overflow Damage 1463 | . 7 4 80 . 53 5 1 102 6 26 205 24 2 52 . 179 14 63 36 51 36 40 36 80 . 214 147 Projectiles 857 | . . . 6 . 53 . . 45 6 . . 9 2 39 . 55 14 6 36 51 36 40 36 67 . 209 147 Explosions 339 | . . . 41 . . 5 1 39 . 26 . 15 . 13 . 124 . 57 . . . . . 13 . 5 . Melee 267 | . 7 4 33 . . . . 18 . . 205 . . . . . . . . . . . . . . . . Knockbacks 42 | . . . 1 . . . . 2 . . 1 . 1 . . 4 . . 4 3 . 3 2 3 1 10 7 Impact 4 | . . . 1 . . . . 2 . . 1 . . . . . . . . . . . . . . . . Kinetic 33 | . . . . . . . . . . . . . 1 . . 4 . . 4 3 . 3 1 3 1 7 6 Secondary 5 | . . . . . . . . . . . . . . . . . . . . . . . 1 . . 3 1 Self-Inflicted Damage 1066 | . . . 75 . 45 17 . 59 . . . 130 . 117 . 124 . 56 . 100 . 33 . 64 110 63 73 Shots 32 | . . . 2 . 1 1 . 2 . . . 3 . 3 . 3 . 2 . 3 . 1 . 3 2 3 3 Rammed 2 | . . . . . . . 1 . . . . . . . . . . . . . . . . . . . 1 Targets Rammed 2 | . . . . . . . 1 . . . . . . . . . . . . . . . . . . . 1 Kicked . | . . . . . . . . . . . . . . . . . . . . . . . . . . . . Crushed . | . . . . . . . . . . . . . . . . . . . . . . . . . . . . Highest Temperature 574 | . 96 18 216 157 208 248 221 188 273 231 179 234 246 108 135 574 183 230 358 213 212 363 351 437 259 337 379 Average Temperature 86 | . 21 10 61 85 49 130 92 64 53 80 35 72 58 48 37 125 91 56 38 43 50 75 106 128 91 94 141 Received Heat Transfer 3684 | . 213 . 447 . 225 117 81 240 72 159 144 129 . 18 9 414 156 84 48 425 15 92 78 144 9 30 335 Effects 28 | . . . . . . . . . . . . . . . . 4 . . 1 . . . 8 6 . . 9 Shutdowns 4 | . . . . . . . . . . . . . . . . 1 . . 1 . . . . 2 . . . Energy Bleed 3 | . . . . . . . . . . . . . . . . . . . . . . . . 1 . . 2 Interference 13 | . . . . . . . . . . . . . . . . . . . . . . . 8 . . . 5 Matter Decay 2 | . . . . . . . . . . . . . . . . . . . . . . . . . . . 2 Damage (minor) 2 | . . . . . . . . . . . . . . . . 2 . . . . . . . . . . . Damage (major) 4 | . . . . . . . . . . . . . . . . 1 . . . . . . . 3 . . . Siege Activations 27 | . . . . . . . . . . . . . . . . 3 2 2 2 3 . 3 1 4 . 3 4 Total Turns 535 | . . . . . . . . . . . . . . . . 56 38 26 49 77 . 35 5 47 . 66 136 Longest Duration 62 | . . . . . . . . . . . . . . . . 26 27 17 38 62 . 17 5 20 . 24 57 Martial Activations . | . . . . . . . . . . . . . . . . . . . . . . . . . . . . Shielding Activations . | . . . . . . . . . . . . . . . . . . . . . . . . . . . . Robots Disrupted 1 | . . . . . . . . . . . . 1 . . . . . . . . . . . . . . . Combat Hostiles 1 | . . . . . . . . . . . . 1 . . . . . . . . . . . . . . . Robots Corrupted 53 | . 1 1 1 . . . . 2 . . 2 . . . . . . 7 . 6 . 3 3 6 2 6 13 Combat Hostiles 47 | . . . . . . . . 2 . . 1 . . . . . . 6 . 6 . 3 3 6 2 6 12 Parts Fried 96 | . 1 . 1 . . . . 2 . . 4 1 . . . . . 6 . 16 . 5 12 11 . 6 31 Impact Corruptions 12 | . 1 1 1 . . . . 1 . . 6 . . . . . . . . . . . . . . . 2 Robots Melted 10 | . . . . . . . . 2 . 1 . . . 3 . . . 1 . . . . . . 1 . 2 Combat Hostiles 6 | . . . . . . . . 1 . 1 . . . . . . . 1 . . . . . . 1 . 2 Parts Melted 35 | . 2 . 4 . . . . 3 . 1 . . . 5 . 1 1 6 1 . 1 3 3 1 1 . 2 Heat Transferred 22814 | . 962 . 1850 . 962 444 296 1443 518 404 444 185 525 1700 150 1450 1250 2250 740 518 703 888 1295 962 148 814 1913 Parts Sabotaged . | . . . . . . . . . . . . . . . . . . . . . . . . . . . . Parts Stolen . | . . . . . . . . . . . . . . . . . . . . . . . . . . . . Parts Stripped 33 | . . . . . . . . . . . . . . . . . . . . . . . . 15 . 18 . Power Chain Reactions 3 | . . . . . 1 . . . . . . . . . . . . . . . . . . . . 1 1 Alert | -11 -10 -10 -9 -9 -8 -8 -8 -8 -8 -8 -7 -7 -6 -6 -6 -6 -5 -5 -4 -4 -3 -3 -2 -2 -2 -2 -2 ------- Run | Yrd Mat Min Mat Min Mat Gar Mat Gar Mat Gar Fac Gar Fac Gar Fac Gar Fac Gar Fac Gar Res Qua Res Gar Res Tes Sec Maximum Alert Level 3 | . . . 1 . . 2 1 3 2 2 1 2 1 2 1 2 1 2 1 2 1 . . 2 1 1 2 Low Security (%) 61 | 100 100 100 84 100 100 23 62 13 68 25 77 27 80 22 8 13 36 34 74 5 31 100 100 9 69 98 45 Level 1 23 | . . . 15 . . 20 37 34 . 11 22 48 19 26 91 20 63 41 25 51 68 . . 56 30 1 45 Level 2 13 | . . . . . . 55 . 20 31 63 . 23 . 51 . 66 . 23 . 43 . . . 33 . . 9 Level 3 1 | . . . . . . . . 31 . . . . . . . . . . . . . . . . . . . Level 4 . | . . . . . . . . . . . . . . . . . . . . . . . . . . . . Level 5 . | . . . . . . . . . . . . . . . . . . . . . . . . . . . . High Security . | . . . . . . . . . . . . . . . . . . . . . . . . . . . . Max Security . | . . . . . . . . . . . . . . . . . . . . . . . . . . . . Peak Influence 1069 | 15 151 35 355 5 145 572 334 1069 520 605 317 505 264 604 317 602 315 626 328 665 373 139 177 585 323 213 496 Initial 520 | . . 26 . . . 51 278 73 520 18 317 . 264 25 317 129 315 110 328 61 373 15 76 100 319 64 49 Average 197 | 2 51 3 99 . 59 384 153 533 200 382 123 246 131 392 262 411 220 311 148 383 224 64 61 388 179 117 200 Influence Increases 13289 | 30 551 43 910 5 497 521 425 1096 255 607 190 555 366 659 186 603 259 556 284 724 106 602 693 598 320 586 1062 Destroy 0b10 Robot/C 6530 | . 280 20 520 . 280 280 220 580 140 340 90 225 165 285 90 300 180 255 120 360 30 255 315 300 105 240 555 Destroy 0b10 Robot/NC 475 | 30 40 5 95 5 20 . 35 10 15 . 24 . 20 20 4 . 8 20 4 . 12 12 36 4 8 32 16 Destroy Leader 1198 | . 56 . 166 . 82 20 66 50 44 20 40 24 26 8 26 48 24 8 56 32 16 50 102 48 32 32 122 Allied During Kill 361 | . . . . . . . 43 9 8 . 1 14 55 37 22 30 5 9 . 5 6 8 27 6 27 3 46 Successful Hack 290 | . 16 . 5 . 11 28 5 . 12 12 14 . 44 . 4 . . 11 10 . . 67 18 . 4 12 17 Select Force Hacks 90 | . 60 . 30 . . . . . . . . . . . . . . . . . . . . . . . . Disable Machine 723 | . . . . . 30 . 45 . 15 45 . 24 24 12 24 24 . 24 12 36 12 108 48 36 12 120 72 Anti-Garrison Action 1370 | . . . . . . 100 . 300 . 100 . 189 . 189 . 114 . 151 . 151 . . . 76 . . . Destroy Structure 1763 | . 9 3 64 . 59 78 11 87 21 90 9 79 32 96 16 75 30 78 82 104 30 78 147 80 132 63 210 Partial Spotted 12 | . . . . . . . . . . . . . . . . . . . . . . . . . . 12 . Lose Combat Pursuer 477 | . 90 15 30 . 15 15 . 60 . . 12 . . 12 . 12 12 . . 36 . 24 . 48 . 72 24 Influence Decreases 12957 | 30 482 112 910 5 418 28 884 140 1296 30 795 50 834 92 605 186 703 88 822 147 744 493 695 164 773 613 818 Entered New Map 3245 | . . 43 . . . 28 294 40 549 10 288 . 241 12 287 56 287 48 298 27 292 12 60 34 249 51 39 Time Decay 6965 | 30 380 69 550 5 418 . 230 . 392 . 507 . 583 . 278 . 356 . 494 . 262 441 535 . 404 502 529 Lost Part 750 | . . . 60 . . . . 40 10 20 . 30 . 20 . 70 50 20 10 60 . 10 40 90 10 . 210 Lost Ally 870 | . . . . . . . 60 60 70 . . 20 10 60 40 60 10 20 20 60 40 30 60 40 110 60 40 Purge Threat 1127 | . 102 . 300 . . . 300 . 275 . . . . . . . . . . . 150 . . . . . . Squads Dispatched 53 | . 5 . 3 1 3 . 2 . . . 5 . 3 . 1 . 1 . 2 . 1 5 4 . 1 3 13 Investigation 9 | . 3 . 1 1 1 . . . . . 2 . . . . . . . . . . . . . . . 1 Extermination 23 | . . . . . . . . . . . 3 . 2 . 1 . 1 . 2 . 1 4 3 . 1 2 3 Reinforcement 16 | . 2 . 2 . 2 . 1 . . . . . 1 . . . . . . . . 1 1 . . . 6 Assault . | . . . . . . . . . . . . . . . . . . . . . . . . . . . . Garrison 2 | . . . . . . . 1 . . . . . . . . . . . . . . . . . . 1 . Intercept 3 | . . . . . . . . . . . . . . . . . . . . . . . . . . . 3 Searches Triggered . | . . . . . . . . . . . . . . . . . . . . . . . . . . . . Construction Impeded . | . . . . . . . . . . . . . . . . . . . . . . . . . . . . Haulers Reinforced 2 | . . . . . . . . . . . . . . . . . . . . . . . . . . . 2 Active Scanning Responses . | . . . . . . . . . . . . . . . . . . . . . . . . . . . . Cargo Convoy Interrupts . | . . . . . . . . . . . . . . . . . . . . . . . . . . . . Stealth | -11 -10 -10 -9 -9 -8 -8 -8 -8 -8 -8 -7 -7 -6 -6 -6 -6 -5 -5 -4 -4 -3 -3 -2 -2 -2 -2 -2 --------- Run | Yrd Mat Min Mat Min Mat Gar Mat Gar Mat Gar Fac Gar Fac Gar Fac Gar Fac Gar Fac Gar Res Qua Res Gar Res Tes Sec Distress Signals 15 | . . . 2 . 3 . . . 4 . . . 1 . . . . . . . 1 2 1 . . 1 . Communications Jammed 91 | . . . . . . . . . 1 . . . . . . . 1 . 14 . 20 . 33 . . 11 11 Distress Signals 89 | . . . . . . . . . . . . . . . . . . . 14 . 20 . 33 . . 11 11 Times Spotted 568 | . 29 2 35 . 22 11 11 34 20 21 13 14 12 24 9 30 18 26 11 30 6 28 35 23 10 24 70 Peak Tracking Total 11 | . 4 2 6 . 5 5 4 4 5 6 2 3 4 6 2 6 4 4 3 7 3 4 4 7 3 8 11 Tactical Retreats 29 | . 3 1 2 . 1 1 . 3 . . 1 . . 1 . 1 1 . . 2 . 2 . 2 . 6 2 Traps | -11 -10 -10 -9 -9 -8 -8 -8 -8 -8 -8 -7 -7 -6 -6 -6 -6 -5 -5 -4 -4 -3 -3 -2 -2 -2 -2 -2 ------- Run | Yrd Mat Min Mat Min Mat Gar Mat Gar Mat Gar Fac Gar Fac Gar Fac Gar Fac Gar Fac Gar Res Qua Res Gar Res Tes Sec Traps Triggered 51 | . 1 . 2 . 1 4 . 10 3 9 2 3 1 1 . 1 1 2 . 3 1 1 1 1 1 2 . Indirectly 2 | . . . . . . . . . . . . . . . . . . . . . . . . . . 2 . Trap Hack Attempts . | . . . . . . . . . . . . . . . . . . . . . . . . . . . . Triggered . | . . . . . . . . . . . . . . . . . . . . . . . . . . . . Disarmed . | . . . . . . . . . . . . . . . . . . . . . . . . . . . . Reprogrammed . | . . . . . . . . . . . . . . . . . . . . . . . . . . . . Reused . | . . . . . . . . . . . . . . . . . . . . . . . . . . . . Traps Extracted . | . . . . . . . . . . . . . . . . . . . . . . . . . . . . Installed . | . . . . . . . . . . . . . . . . . . . . . . . . . . . . Triggered . | . . . . . . . . . . . . . . . . . . . . . . . . . . . . Machines | -11 -10 -10 -9 -9 -8 -8 -8 -8 -8 -8 -7 -7 -6 -6 -6 -6 -5 -5 -4 -4 -3 -3 -2 -2 -2 -2 -2 ---------- Run | Yrd Mat Min Mat Min Mat Gar Mat Gar Mat Gar Fac Gar Fac Gar Fac Gar Fac Gar Fac Gar Res Qua Res Gar Res Tes Sec Machines Disabled 82 | . . . . . 2 2 3 4 1 5 . 4 2 4 2 5 . 4 1 5 1 9 4 5 1 12 6 Max in Single Turn 2 | . . . . . 1 1 1 1 1 1 . 1 . 1 1 1 . 1 1 1 1 1 1 1 1 2 1 Garrison Access 7 | . . . . . . . . . . . . . 1 . . . . . 1 . . 1 1 . 1 1 1 Garrison Relay 22 | . . . . . . 2 . 4 . 2 . 2 . 3 . 3 . 2 . 2 . . . 2 . . . Machines Repaired . | . . . . . . . . . . . . . . . . . . . . . . . . . . . . Machines Dismantled 1 | . . . . . . . . . . . . . . . . . . . . . . . . . . . 1 Machines Sabotaged . | . . . . . . . . . . . . . . . . . . . . . . . . . . . . Overloaded Fab Kills . | . . . . . . . . . . . . . . . . . . . . . . . . . . . . Hacking | -11 -10 -10 -9 -9 -8 -8 -8 -8 -8 -8 -7 -7 -6 -6 -6 -6 -5 -5 -4 -4 -3 -3 -2 -2 -2 -2 -2 --------- Run | Yrd Mat Min Mat Min Mat Gar Mat Gar Mat Gar Fac Gar Fac Gar Fac Gar Fac Gar Fac Gar Res Qua Res Gar Res Tes Sec Machines Accessed 98 | . 8 1 5 2 5 2 4 . 3 1 8 1 10 . 4 1 4 1 7 1 2 9 8 . 4 3 4 Terminals 57 | . 6 . 4 1 3 2 3 . 1 1 3 1 6 . 2 1 2 1 3 1 1 7 2 . 2 1 3 Fabricators 5 | . . . . . . . . . . . 1 . . . . . 1 . 1 . . . 1 . . 1 . Repair Stations 7 | . . . . . . . . . 1 . 1 . 1 . 1 . . . 1 . . 1 1 . . . . Recycling Units 10 | . 2 . 1 . 1 . . . . . 1 . 1 . . . . . . . 1 . 2 . 1 . . Scanalyzers 1 | . . . . . . . . . . . 1 . . . . . . . . . . . . . . . . Garrison Access 16 | . . . . . 1 . 1 . 1 . 1 . 2 . 1 . 1 . 2 . . 1 2 . 1 1 1 Total Hacks 225 | . 32 1 13 3 11 3 18 . 6 2 17 2 25 . 11 3 5 2 13 1 3 16 12 . 6 5 15 Successful 107 | . 15 1 6 3 7 2 9 . 2 1 9 . 12 . 4 . 1 1 7 . . 11 6 . 2 2 6 Failed 117 | . 16 . 7 . 4 1 9 . 4 1 8 2 13 . 7 3 4 1 6 1 3 5 6 . 4 3 9 Catastrophic 28 | . . . . . . . 1 . 3 . 2 . 6 . . . 2 . 2 1 1 3 3 . 1 1 2 Database Lockouts 1 | . 1 . . . . . . . . . . . . . . . . . . . . . . . . . . Manual 114 | . 28 . 9 1 7 . 8 . 3 . 10 . 14 . 7 . 3 . 5 . . 4 3 . 3 1 8 Terminals 164 | . 28 . 11 2 8 3 17 . 3 2 10 2 19 . 7 3 3 2 6 1 1 13 3 . 4 2 14 Fabricators 10 | . . . . . . . . . . . 2 . . . . . 1 . 3 . . . 2 . . 2 . Repair Stations 14 | . . . . . . . . . 2 . 1 . 3 . 3 . . . 2 . . 2 1 . . . . Recycling Units 16 | . 4 . 2 . 1 . . . . . 1 . 1 . . . . . . . 2 . 4 . 1 . . Scanalyzers 1 | . . . . . . . . . . . 1 . . . . . . . . . . . . . . . . Garrison Access 18 | . . . . . 2 . 1 . 1 . 2 . 2 . 1 . 1 . 2 . . 1 2 . 1 1 1 Terminal Hacks 44 | . 10 1 2 3 2 2 6 . . 1 2 . 4 . 1 . . 1 1 . . 5 . . . . 3 Record 2 | . . . . . . . . . . . . . . . . . . . . . . 2 . . . . . Part Schematic 2 | . 1 . . . . . . . . . . . 1 . . . . . . . . . . . . . . Robot Analysis 8 | . 7 . . . . . 1 . . . . . . . . . . . . . . . . . . . . Open Door 2 | . . 1 . 1 . . . . . . . . . . . . . . . . . . . . . . . Level Access Points 1 | . . . . . . . . . . . . . . . . . . . . . . . . . . . 1 Emergency Access Points 4 | . . . . . . 1 . . . 1 . . . . . . . 1 . . . . . . . . 1 Terminal Index 5 | . . . . . 1 . 1 . . . . . 1 . 1 . . . 1 . . . . . . . . Unreport Threat 5 | . 1 . 2 . . . 2 . . . . . . . . . . . . . . . . . . . . Locate Traps 4 | . 1 . . . . . 1 . . . 1 . . . . . . . . . . 1 . . . . . Maintenance Status 2 | . . . . 1 . . . . . . . . 1 . . . . . . . . . . . . . . Recall Extermination 2 | . . . . . . . . . . . 1 . . . . . . . . . . 1 . . . . . Hauler Manifests 3 | . . . . . 1 . 1 . . . . . 1 . . . . . . . . . . . . . . Registered Components 1 | . . . . . . . . . . . . . . . . . . . . . . 1 . . . . . Zone Layout 2 | . . . . 1 . . . . . . . . . . . . . . . . . . . . . . 1 Garrison Registry 1 | . . . . . . 1 . . . . . . . . . . . . . . . . . . . . . Fabricator Hacks 2 | . . . . . . . . . . . 1 . . . . . . . 1 . . . . . . . . Network Status 1 | . . . . . . . . . . . 1 . . . . . . . . . . . . . . . . Build 1 | . . . . . . . . . . . . . . . . . . . 1 . . . . . . . . Repair Station Hacks 7 | . . . . . . . . . 1 . . . 2 . 1 . . . 1 . . 2 . . . . . Scan Component 5 | . . . . . . . . . 1 . . . 1 . 1 . . . 1 . . 1 . . . . . Repair 2 | . . . . . . . . . . . . . 1 . . . . . . . . 1 . . . . . Recycling Unit Hacks 3 | . . . . . 1 . . . . . 1 . . . . . . . . . . . 1 . . . . Retrieve Components 3 | . . . . . 1 . . . . . 1 . . . . . . . . . . . 1 . . . . Scanalyzer 1 | . . . . . . . . . . . 1 . . . . . . . . . . . . . . . . Insert Component 1 | . . . . . . . . . . . 1 . . . . . . . . . . . . . . . . Garrison Access Hacks 16 | . . . . . 1 . 1 . 1 . 1 . 2 . 1 . 1 . 2 . . 1 2 . 1 1 1 Unlock Access 9 | . . . . . 1 . 1 . 1 . 1 . 1 . 1 . 1 . 1 . . . 1 . . . . Seal Access 7 | . . . . . . . . . . . . . 1 . . . . . 1 . . 1 1 . 1 1 1 Unauthorized Hacks 34 | . 5 . 4 . 3 . 2 . . . 3 . 4 . 1 . . . 2 . . 3 3 . 1 1 2 Terminals 28 | . 3 . 3 . 3 . 2 . . . 2 . 4 . 1 . . . 1 . . 3 2 . 1 1 2 Assimilate 1 | . . . . . . . . . . . . . 1 . . . . . . . . . . . . . . Botnet 25 | . 3 . 3 . 2 . 2 . . . 2 . 2 . 1 . . . 1 . . 3 2 . 1 1 2 Operators 2 | . . . . . 1 . . . . . . . 1 . . . . . . . . . . . . . . Fabricators 1 | . . . . . . . . . . . . . . . . . . . 1 . . . . . . . . Prioritize 1 | . . . . . . . . . . . . . . . . . . . 1 . . . . . . . . Repair Stations 2 | . . . . . . . . . . . 1 . . . . . . . . . . . 1 . . . . Mechanics 1 | . . . . . . . . . . . . . . . . . . . . . . . 1 . . . . Patch 1 | . . . . . . . . . . . 1 . . . . . . . . . . . . . . . . Recycling Units 3 | . 2 . 1 . . . . . . . . . . . . . . . . . . . . . . . . Tunnel 3 | . 2 . 1 . . . . . . . . . . . . . . . . . . . . . . . . Scanalyzers . | . . . . . . . . . . . . . . . . . . . . . . . . . . . . Garrison Access . | . . . . . . . . . . . . . . . . . . . . . . . . . . . . Data Cores Recovered . | . . . . . . . . . . . . . . . . . . . . . . . . . . . . Used . | . . . . . . . . . . . . . . . . . . . . . . . . . . . . Hacking Detections 78 | . 8 . 5 1 4 1 3 . 2 1 5 1 8 . 4 1 4 1 5 1 2 7 6 . 3 2 3 Full Trace Events 3 | . . . . . . . . . . . 1 1 . . . . . . . . . . . . . . 1 Feedback Events . | . . . . . . . . . . . . . . . . . . . . . . . . . . . . Feedback Blocked . | . . . . . . . . . . . . . . . . . . . . . . . . . . . . Robot Schematics Acquired . | . . . . . . . . . . . . . . . . . . . . . . . . . . . . Robots Built 1 | . . . . . . . . . . . . . . . . . . . 1 . . . . . . . . Authchips 1 | . . . . . . . . . . . . . . . . . . . 1 . . . . . . . . Time 187 | . . . . . . . . . . . . . . . . . . . 187 . . . . . . . . Total Robot Build Rating 7 | . . . . . . . . . . . . . . . . . . . 7 . . . . . . . . Part Schematics Acquired 4 | . 1 . . . . . . . . . . . 1 . . . . . . . . . . . . . 2 Parts Built . | . . . . . . . . . . . . . . . . . . . . . . . . . . . . Authchips . | . . . . . . . . . . . . . . . . . . . . . . . . . . . . Time . | . . . . . . . . . . . . . . . . . . . . . . . . . . . . Total Part Build Rating . | . . . . . . . . . . . . . . . . . . . . . . . . . . . . Parts Repaired 2 | . . . . . . . . . . . . . 1 . . . . . . . . 1 . . . . . Time 44 | . . . . . . . . . . . . . 13 . . . . . . . . 31 . . . . . Parts Recycled . | . . . . . . . . . . . . . . . . . . . . . . . . . . . . Recycled Matter . | . . . . . . . . . . . . . . . . . . . . . . . . . . . . Retrieved Matter . | . . . . . . . . . . . . . . . . . . . . . . . . . . . . Retrieved Components 21 | . . . . . 10 . . . . . 1 . . . . . . . . . . . 10 . . . . Parts Scanalyzed . | . . . . . . . . . . . . . . . . . . . . . . . . . . . . Part Schematics Acquired . | . . . . . . . . . . . . . . . . . . . . . . . . . . . . Parts Damaged . | . . . . . . . . . . . . . . . . . . . . . . . . . . . . Bothacking | -11 -10 -10 -9 -9 -8 -8 -8 -8 -8 -8 -7 -7 -6 -6 -6 -6 -5 -5 -4 -4 -3 -3 -2 -2 -2 -2 -2 ------------ Run | Yrd Mat Min Mat Min Mat Gar Mat Gar Mat Gar Fac Gar Fac Gar Fac Gar Fac Gar Fac Gar Res Qua Res Gar Res Tes Sec Used RIF Installer 10 | . . . . . . 1 . 2 . 1 . 1 . 1 . 2 . 1 . 1 . . . . . . . Coupler Efficiency 1 | . . . . . . . . 1 . . . . . . . . . . . . . . . . . . . Command Fork 1 | . . . . . . . . . . . . 1 . . . . . . . . . . . . . . . Threat Obfuscator 1 | . . . . . . . . . . 1 . . . . . . . . . . . . . . . . . Signal Jammer 1 | . . . . . . . . 1 . . . . . . . . . . . . . . . . . . . Zone Cloak 2 | . . . . . . . . . . . . . . . . 2 . . . . . . . . . . . Patrol Navigation 1 | . . . . . . . . . . . . . . 1 . . . . . . . . . . . . . Autooverride 1 | . . . . . . . . . . . . . . . . . . 1 . . . . . . . . . Autoassimilate 1 | . . . . . . . . . . . . . . . . . . . . 1 . . . . . . . Robots Hacked 83 | . . . . . . . . 3 5 2 4 1 5 3 3 8 7 1 6 2 5 1 11 2 2 8 4 Non-combat 28 | . . . . . . . . . 1 . 2 . 5 . . . 3 . 4 . 3 1 6 . 1 2 . Combat 55 | . . . . . . . . 3 4 2 2 1 . 3 3 8 4 1 2 2 2 . 5 2 1 6 4 Autooverrided 2 | . . . . . . . . . . . . . . . . . . . . . . . 1 1 . . . Autoassimilated 5 | . . . . . . . . . . . . . . . . . . . . . . . 1 . . 3 1 Robot Hacks Applied 86 | . . . . . . . . 3 7 2 4 1 5 3 3 8 8 1 8 3 7 2 10 1 2 5 3 find_chute 3 | . . . . . . . . . . . . . 1 . . . 1 . 1 . . . . . . . . drop_inventory 12 | . . . . . . . . . . . 2 . 3 . . . 1 . 1 . 1 . 2 . . 2 . purge_threat 3 | . . . . . . . . . 2 . . . . . . . . . . . 1 . . . . . . block_reporting 2 | . . . . . . . . . . . . . . . . . . . . . 1 1 . . . . . map_route 4 | . . . . . . . . . . . . . . . . . 1 . 1 . . . 2 . . . . mark_security 1 | . . . . . . . . . . . . . . . . . . . 1 . . . . . . . . disable_scanner 4 | . . . . . . . . . . . . . . . . . . . . . . . . . . 3 1 find_garrison 5 | . . . . . . . . . 1 . . . . . 1 . 1 . 1 . . . 1 . . . . scatter_targeting 1 | . . . . . . . . . 1 . . . . . . . . . . . . . . . . . . spike_heat 1 | . . . . . . . . . . . . . . . . . . . . 1 . . . . . . . amplify_resonance 16 | . . . . . . . . 2 . 2 . . . 1 . 3 3 . 1 . . . 2 1 . . 1 reboot_system 5 | . . . . . . . . . . . 1 . . . 1 2 . . . 1 . . . . . . . overwrite_iff 1 | . . . . . . . . . . . . . . . . . 1 . . . . . . . . . . streamctrl_high 1 | . . . . . . . . . . . . . . . . . . . . . . . 1 . . . . formatsys_low 8 | . . . . . . . . . 1 . . . 1 . . . . . . . 2 1 2 . 1 . . formatsys_high 19 | . . . . . . . . 1 2 . 1 1 . 2 1 3 . 1 2 1 2 . . . 1 . 1 Relay Couplers Released 97 | . . . . . . 7 . 19 . 7 . 9 . 12 . 10 . 6 . 8 . 3 5 7 2 . 2 Machine Destruction 93 | . . . . . . 7 . 19 . 7 . 9 . 12 . 10 . 6 . 8 . 3 1 7 2 . 2 Programmers 4 | . . . . . . . . . . . . . . . . . . . . . . . 4 . . . . Attached 29 | . . . . . . . . 2 3 . 2 1 1 3 . 2 2 3 2 1 . 3 1 1 2 . . Fabnet Peak Effective % . | . . . . . . . . . . . . . . . . . . . . . . . . . . . . Robots Rewired 10 | . . . . . . 3 . 3 . . . . . . . . 1 . . . . . . 3 . . . Allies Hacked 7 | . . . . . . . . . . . . . 1 . . . . . . . 2 . 2 . 1 . 1 Hacks Repelled . | . . . . . . . . . . . . . . . . . . . . . . . . . . . . Allies | -11 -10 -10 -9 -9 -8 -8 -8 -8 -8 -8 -7 -7 -6 -6 -6 -6 -5 -5 -4 -4 -3 -3 -2 -2 -2 -2 -2 -------- Run | Yrd Mat Min Mat Min Mat Gar Mat Gar Mat Gar Fac Gar Fac Gar Fac Gar Fac Gar Fac Gar Res Qua Res Gar Res Tes Sec Total Allies 59 | . . 1 . . . 3 . 4 3 . 1 3 1 2 1 5 2 4 3 1 5 2 5 5 2 3 3 Largest Group 4 | . . 1 . . . 2 3 3 4 . 1 2 3 2 2 3 2 2 2 1 3 4 2 4 4 2 3 Highest-Rated Group 350 | . . 31 . . . 80 120 16 69 . 16 175 185 175 94 93 93 126 46 56 93 157 116 225 350 116 160 Highest-Rated Ally 183 | . . 31 . . . 40 40 16 23 . 16 95 95 95 47 32 64 85 43 56 47 47 58 58 183 58 58 Total Orders 29 | . . . . . . . . . . . . . . . . . . 17 1 3 1 1 1 1 1 . 3 STAY 7 | . . . . . . . . . . . . . . . . . . 3 . . . 1 . 1 . . 2 ROAM 1 | . . . . . . . . . . . . . . . . . . . . . . . . . . . 1 FOLLOW 4 | . . . . . . . . . . . . . . . . . . 4 . . . . . . . . . AID 4 | . . . . . . . . . . . . . . . . . . . 1 . 1 . 1 . 1 . . EXPLORE 4 | . . . . . . . . . . . . . . . . . . 3 . 1 . . . . . . . RETURN 9 | . . . . . . . . . . . . . . . . . . 7 . 2 . . . . . . . Ally Attacks 330 | . . . . . . . 44 11 20 . 5 16 30 12 21 18 3 34 . 12 12 9 19 10 19 9 26 Total Damage 8300 | . . . . . . . 747 68 233 . 44 203 1413 338 519 378 37 663 . 488 413 110 625 245 679 320 777 Kills 54 | . . . . . . . 10 . 3 . . 2 12 5 5 3 2 2 . 1 1 . 1 1 2 1 3 Allies Corrupted 1 | . . . . . . . . . . . . . . . . . . . 1 . . . . . . . . Allies Melted 1 | . . . . . . . . . . . . . . . . . . . . . . . 1 . . . . Intel | -11 -10 -10 -9 -9 -8 -8 -8 -8 -8 -8 -7 -7 -6 -6 -6 -6 -5 -5 -4 -4 -3 -3 -2 -2 -2 -2 -2 ------- Run | Yrd Mat Min Mat Min Mat Gar Mat Gar Mat Gar Fac Gar Fac Gar Fac Gar Fac Gar Fac Gar Res Qua Res Gar Res Tes Sec Active Infowar (turns) 20853 | 35 1298 687 1720 599 2021 795 486 1516 769 . 1173 2 1809 10 550 . 466 . 567 . 566 1811 1628 87 800 767 691 Optics 4536 | . . . . . 1739 795 486 1516 . . . . . . . . . . . . . . . . . . . Sensors 12206 | . . . . . 1012 . . . 768 . 1171 2 1809 10 550 . 466 . 567 . 510 1717 1366 . 800 767 691 IFF 2 | . . . . . . . . . . . . . 2 . . . . . . . . . . . . . . Terrain 3625 | . . . . . . . . . 1 . . . . . . . . . . . 431 1604 1502 87 . . . Seismic 4746 | 35 1298 687 1720 599 407 . . . . . . . . . . . . . . . . . . . . . . Triangulation 2 | . . . . . . . . . . . . . . . . . . . . . . . 2 . . . . Jamming 1382 | . . . . . . . . . . . . . . . . . . . 2 . . 55 1325 . . . . ECM 2 | . . . . . . . . . . . 2 . . . . . . . . . . . . . . . . Robot Analysis Total 8 | . 7 . . . . . 1 . . . . . . . . . . . . . . . . . . . . Derelict Logs Recovered 4 | . . 2 . 2 . . . . . . . . . . . . . . . . . . . . . . . Drone Launches 45 | . . . . . . . . . . . . . . . . . . 40 . 5 . . . . . . . Drone Recoveries 41 | . . . . . . . . . . . . . . . . . . 38 . 3 . . . . . . . Exploration | -11 -10 -10 -9 -9 -8 -8 -8 -8 -8 -8 -7 -7 -6 -6 -6 -6 -5 -5 -4 -4 -3 -3 -2 -2 -2 -2 -2 ------------- Run | Yrd Mat Min Mat Min Mat Gar Mat Gar Mat Gar Fac Gar Fac Gar Fac Gar Fac Gar Fac Gar Res Qua Res Gar Res Tes Sec Turns Passed 32830 | 187 1411 707 2375 599 2021 795 486 1590 922 702 1393 1310 1809 895 609 1077 816 1447 1317 1267 570 1918 1652 910 966 1350 1729 Spaces Moved 15972 | 91 666 451 1253 393 1019 463 327 912 564 392 853 484 686 400 327 497 381 628 619 531 240 996 780 410 472 528 609 Core 2 | 2 . . . . . . . . . . . . . . . . . . . . . . . . . . . Treads 8545 | 81 . . 5 . 1 . . . . 2 . 411 686 341 327 497 381 628 619 531 240 996 780 410 472 528 609 Legs 59 | . . . . . . . . . . . . . . 59 . . . . . . . . . . . . . Wheels 7366 | 8 666 451 1248 393 1018 463 327 912 564 390 853 73 . . . . . . . . . . . . . . . Hover . | . . . . . . . . . . . . . . . . . . . . . . . . . . . . Flight . | . . . . . . . . . . . . . . . . . . . . . . . . . . . . Fastest Speed 50 | 50 100 145 105 150 115 130 130 120 120 120 120 150 240 160 160 160 160 160 160 152 152 148 148 152 155 158 160 Average Speed 155 | 152 114 145 145 150 146 130 130 124 120 120 130 236 240 172 160 160 160 160 162 176 157 152 154 156 171 189 160 Slowest Speed 250 | 160 145 145 240 150 250 130 130 165 120 245 150 243 240 240 160 160 160 160 240 232 232 155 230 158 238 245 240 Overloaded Moves . | . . . . . . . . . . . . . . . . . . . . . . . . . . . . Propulsion Burnouts . | . . . . . . . . . . . . . . . . . . . . . . . . . . . . Robots Hopped . | . . . . . . . . . . . . . . . . . . . . . . . . . . . . Potential Cave-ins . | . . . . . . . . . . . . . . . . . . . . . . . . . . . . Cave-ins Triggered . | . . . . . . . . . . . . . . . . . . . . . . . . . . . . Teleports 26 | . . . . . . . . . . . . . . . . . . . . . . 1 1 . . . 24 Exploration Rate (%) 45 | 5 95 66 80 91 63 59 37 70 41 59 27 49 20 50 8 57 13 62 15 54 7 84 28 39 11 54 31 Regions Visited 27 Branch Regions 5 Pre-discovered Areas 5 | . 2 2 1 . . . . . . . . . . . . . . . . . . . . . . . . Known Exits Taken 13 | . . . . . 1 . 1 . 1 . 1 . 1 . 1 . 1 . 1 . 1 1 1 . 1 1 . Unknown Exits Taken 5 | 1 1 1 1 1 . . . . . . . . . . . . . . . . . . . . . . . Scrap Searched 4 | . . 2 . 2 . . . . . . . . . . . . . . . . . . . . . . . Spaces Dug 368 | . 7 3 27 . 13 5 . 39 10 27 11 17 20 34 12 13 5 . 19 2 15 22 25 2 7 10 23 Terrain Destroyed 1014 | . 7 3 76 . 83 34 10 65 26 55 11 100 22 56 17 61 18 10 48 48 15 41 48 12 54 23 71 Melee 41 | . 6 3 14 . 13 . . . . . 5 . . . . . . . . . . . . . . . . Projectile 373 | . 1 . 1 . 8 . 2 . 26 . 6 . 22 . 17 8 18 1 48 11 15 41 48 12 11 22 55 AOE 599 | . . . 61 . 62 34 8 65 . 55 . 100 . 56 . 53 . 9 . 37 . . . . 43 1 15 Terrain Rammed . | . . . . . . . . . . . . . . . . . . . . . . . . . . . . Walls Destroyed . | . . . . . . . . . . . . . . . . . . . . . . . . . . . . Machines Disabled . | . . . . . . . . . . . . . . . . . . . . . . . . . . . . Actions | -11 -10 -10 -9 -9 -8 -8 -8 -8 -8 -8 -7 -7 -6 -6 -6 -6 -5 -5 -4 -4 -3 -3 -2 -2 -2 -2 -2 --------- Run | Yrd Mat Min Mat Min Mat Gar Mat Gar Mat Gar Fac Gar Fac Gar Fac Gar Fac Gar Fac Gar Res Qua Res Gar Res Tes Sec Total 21440 | 115 1163 483 1639 404 1429 590 366 1200 733 538 1055 610 813 534 384 661 509 953 816 746 376 1269 1065 596 591 777 1025 Wait 1968 | . 384 12 124 7 258 14 16 36 73 6 56 43 47 19 21 38 32 171 48 72 39 103 85 60 39 49 116 Move 15948 | 90 665 450 1252 392 1018 462 326 911 564 391 853 483 685 398 327 496 380 627 619 530 239 995 779 409 471 527 609 Hop . | . . . . . . . . . . . . . . . . . . . . . . . . . . . . Pick Up 276 | 8 10 5 34 2 11 2 3 11 10 5 18 12 7 16 1 10 7 15 17 9 6 10 7 11 6 13 10 Fast Attach 209 | 7 1 1 10 . 14 1 . 5 4 2 10 4 10 3 . 5 3 8 5 10 11 13 12 14 9 31 16 Attach 92 | . . . 9 . . . . 3 3 2 3 5 1 7 . 5 8 3 5 6 3 3 4 10 3 5 4 Detach 12 | . . . 3 . . . . . . . . . 2 1 . . 2 . . 3 . . . 1 . . . Swap 620 | . 18 1 41 . 33 8 4 32 17 15 33 17 8 12 8 27 12 16 30 23 22 47 60 11 17 34 74 Drop 398 | . 8 2 56 2 29 2 4 11 10 4 23 11 16 22 1 7 3 19 18 11 13 18 18 14 14 44 18 Fire 1600 | 10 63 2 85 1 52 41 12 111 52 52 52 29 37 54 25 73 47 92 74 78 43 80 100 65 32 73 165 Melee 79 | . 14 10 25 . 14 3 . 4 . . 7 . . . . . . . . . . . . 1 . 1 . Ram 2 | . . . . . . . . . . . . . . . . . . . . . . . . . . . 2 Kick . | . . . . . . . . . . . . . . . . . . . . . . . . . . . . Crush 2 | . . . . . . . 1 . . . . . . . . . . . . . . . . . . . 1 Escape Stasis 151 | . . . . . . 24 . 53 . 61 . 6 . 2 . . . 1 . 4 . . . . . . . Rewire 73 | . . . . . . 33 . 23 . . . . . . 1 . 15 1 . . . . . . . . . Trap . | . . . . . . . . . . . . . . . . . . . . . . . . . . . . Miscellaneous 10 | . . . . . . . . . . . . . . . . . . . . . . . . . . . 10 Route ------- -11/Scrapyard -10/Materials (discovered 4 exits: *Mat x3 / *Min) -10/Mines (discovered 4 exits: *Mat x2 / [*Exi] / [*Sub]) -9/Materials (discovered 4 exits: *Mat x2 / *Min x2) -9/Mines (discovered 2 exits: *Mat x2) -8/Materials (discovered 3 exits: *Fac x2 / Gar) -8/Garrison (discovered 4 exits: *Fac x3 / *Mat) -8/Materials (discovered 2 exits: *Fac / Gar) -8/Garrison (discovered 4 exits: *Fac x3 / *Mat) -8/Materials -8/Garrison (discovered 2 exits: *Fac x2) -7/Factory (discovered 2 exits: *Sto / Gar) -7/Garrison (discovered 2 exits: *Fac x2) -6/Factory (discovered 3 exits: *Fac / [*Low] / Gar) -6/Garrison -6/Factory -6/Garrison (discovered 2 exits: *Fac x2) -5/Factory -5/Garrison (discovered 3 exits: *Fac x3) -4/Factory (discovered 2 exits: *Upp / Gar) -4/Garrison (discovered 2 exits: *Res x2) -3/Research -3/Quarantine -2/Research -2/Garrison (discovered 2 exits: *Res x2) -2/Research (discovered 2 exits: *Acc / *Tes) -2/Testing (discovered 3 exits: *Acc / *Sec / *Frg) -2/Section 7 (discovered 1 exit: *Acc) History --------- Turn | Location | Event 11 | -11/Scrapyard | Discovered new exit (range 16) 188 | -11/Scrapyard | Entered Materials 300 | -10/Materials | Build established: Mutant 309 | -10/Materials | Discovered new exit (range 14) 623 | -10/Materials | Core integrity fell below 50% 700 | -10/Materials | Discovered new exit (range 10) 835 | -10/Materials | Discovered new exit (range 16) 909 | -10/Materials | Central database locked down 1484 | -10/Materials | Discovered new exit (range 16) 1599 | -10/Materials | Entered Mines 1609 | -10/Mines | Escorted by a lone wolf Derelict 1629 | -10/Mines | Learned location of Storage (-7) 1687 | -10/Mines | Learned Materials terminal intel 1859 | -10/Mines | Discovered new exit (range 6) 2128 | -10/Mines | Discovered new exit (range 13) 2176 | -10/Mines | Discovered new exit (range 9) 2248 | -10/Mines | Deemed a non-threat by the Exiles lab entrance 2248 | -10/Mines | Discovered new exit (range 5) 2279 | -10/Mines | Found the Drone Emporium 2286 | -10/Mines | Found Prototype Device 2286 | -10/Mines | Identified Splice Drone Bay 2306 | -10/Mines | Entered Materials 2306 | -9/Materials | Evolved 2 slots: Propulsion x1, Utility x1 2307 | -9/Materials | Loaded intel: 10 terminal locations 2915 | -9/Materials | Lost 3 parts (1p2n) 2930 | -9/Materials | Build established: Scavenger-Mutant 3141 | -9/Materials | Discovered new exit (range 3) 3537 | -9/Materials | Core integrity fell below 50% 3565 | -9/Materials | Lost 3 parts (2u1w) 3623 | -9/Materials | Discovered new exit (range 16) 3806 | -9/Materials | Discovered new exit (range 14) 3817 | -9/Materials | Build established: Mutant 4152 | -9/Materials | Build established: Scavenger-Mutant 4382 | -9/Materials | Discovered new exit (range 11) 4681 | -9/Materials | Entered Mines 4814 | -9/Mines | Learned 2 Materials zone layouts 4839 | -9/Mines | Build established: Mutant 4857 | -9/Mines | Discovered new exit (range 8) 4982 | -9/Mines | Discovered new exit (range 8) 5218 | -9/Mines | Met a Derelict shopkeep closing up shop 5280 | -9/Mines | Entered Materials 5280 | -8/Materials | Evolved 2 slots: Propulsion x1, Utility x1 5281 | -8/Materials | Identified exit to Factory 6431 | -8/Materials | Identified exit to Garrison 6704 | -8/Materials | Discovered exit to Factory (range 3) 7301 | -8/Materials | Entered Garrison 7343 | -8/Garrison | Triggered checkpoint 7400 | -8/Garrison | Garrison Relay disabled 7491 | -8/Garrison | Triggered checkpoint 7491 | -8/Garrison | Triggered checkpoint 7519 | -8/Garrison | Destroyed 7 combat bots 7619 | -8/Garrison | Discovered exit to Factory (range 9) 7641 | -8/Garrison | Triggered checkpoint 7672 | -8/Garrison | Discovered new exit (range 6) 7763 | -8/Garrison | Triggered checkpoint 7857 | -8/Garrison | Discovered exit to Factory (range 29) 7857 | -8/Garrison | Discovered exit to Factory (range 38) 7857 | -8/Garrison | Discovered exit to Factory (range 51) 7857 | -8/Garrison | Discovered new exit (range 51) 7951 | -8/Garrison | Triggered checkpoint 7972 | -8/Garrison | Installed Relay Interface Framework 7995 | -8/Garrison | Garrison Relay disabled 8096 | -8/Garrison | Entered Materials 8096 | -8/Materials | Accompanied by 3 allies 8527 | -8/Materials | Identified exit to Garrison 8529 | -8/Materials | Discovered exit to Factory (range 20) 8556 | -8/Materials | Garrison activated, responded to threat 8582 | -8/Materials | Entered Garrison 8685 | -8/Garrison | Garrison Relay disabled 8932 | -8/Garrison | System corruption reached 10% 8989 | -8/Garrison | Expanded RIF knowledge: Coupler Efficiency 9074 | -8/Garrison | Triggered checkpoint 9201 | -8/Garrison | Discovered exit to Factory (range 12) 9250 | -8/Garrison | Triggered checkpoint 9286 | -8/Garrison | Triggered checkpoint 9356 | -8/Garrison | Garrison Relay disabled 9545 | -8/Garrison | Triggered checkpoint 9622 | -8/Garrison | Discovered exit to Factory (range 9) 9669 | -8/Garrison | Triggered checkpoint 9750 | -8/Garrison | Triggered checkpoint 9771 | -8/Garrison | Discovered new exit (range 5) 9860 | -8/Garrison | Triggered checkpoint 9938 | -8/Garrison | Discovered exit to Factory (range 12) 9945 | -8/Garrison | Build established: Scavenger-Mutant 9964 | -8/Garrison | Triggered checkpoint 9990 | -8/Garrison | Garrison Relay disabled 10004 | -8/Garrison | Lost 3 allies 10012 | -8/Garrison | Expanded RIF knowledge: Signal Jamming 10096 | -8/Garrison | Triggered checkpoint 10172 | -8/Garrison | Entered Materials 10172 | -8/Materials | Accompanied by 1 ally 10271 | -8/Materials | Build established: Bothacker-Mutant 10596 | -8/Materials | Core integrity fell below 50% 10618 | -8/Materials | Lost 3 allies 10794 | -8/Materials | Build established: Scavenger-Mutant 11094 | -8/Materials | Identified exit to Garrison 11094 | -8/Materials | Entered Garrison 11154 | -8/Garrison | Triggered checkpoint 11192 | -8/Garrison | Garrison Relay disabled 11265 | -8/Garrison | Triggered checkpoint 11276 | -8/Garrison | Triggered checkpoint 11311 | -8/Garrison | Destroyed 8 combat bots 11436 | -8/Garrison | Triggered checkpoint 11491 | -8/Garrison | Build established: Bothacker-Mutant 11520 | -8/Garrison | Garrison Relay disabled 11566 | -8/Garrison | Discovered exit to Factory (range 12) 11626 | -8/Garrison | Triggered checkpoint 11734 | -8/Garrison | Expanded RIF knowledge: Threat Obfuscation 11764 | -8/Garrison | Discovered exit to Factory (range 10) 11796 | -8/Garrison | Entered Factory 11796 | -7/Factory | Evolved 2 slots: Utility x1, Weapon x1 11797 | -7/Factory | Identified exit to Storage 12768 | -7/Factory | Build established: Scavenger-Mutant 13189 | -7/Factory | Identified exit to Garrison 13189 | -7/Factory | Entered Garrison 13189 | -7/Garrison | Accompanied by 1 ally 13487 | -7/Garrison | Spotted B-75 Beast 13595 | -7/Garrison | Triggered checkpoint 13651 | -7/Garrison | Triggered checkpoint 13706 | -7/Garrison | Build established: Scavenger-Tank 13780 | -7/Garrison | Discovered new exit (range 9) 13888 | -7/Garrison | Garrison Relay disabled 13999 | -7/Garrison | Triggered checkpoint 14124 | -7/Garrison | Discovered new exit (range 12) 14191 | -7/Garrison | Found embedded Infiltrators 14208 | -7/Garrison | Build established: Bothacker-Tank 14314 | -7/Garrison | Expanded RIF knowledge: Command Fork 14496 | -7/Garrison | Identified exit to Factory 14499 | -7/Garrison | Entered Factory 14499 | -6/Factory | Accompanied by 2 allies 14499 | -6/Factory | Evolved 2 slots: Propulsion x1, Utility x1 14594 | -6/Factory | Repaired Lgt. Treads 14800 | -6/Factory | Build established: Bothacker-Skirmisher 15438 | -6/Factory | Discovered new exit (range 6) 16103 | -6/Factory | Discovered new exit (range 9) 16296 | -6/Factory | Identified exit to Garrison 16308 | -6/Factory | Entered Garrison 16308 | -6/Garrison | Accompanied by 2 allies 16394 | -6/Garrison | Triggered checkpoint 16466 | -6/Garrison | Expanded RIF knowledge: Patrol Navigation 16536 | -6/Garrison | Destroyed 7 combat bots 16641 | -6/Garrison | Garrison Relay disabled 16738 | -6/Garrison | Triggered checkpoint 16797 | -6/Garrison | Assembled breached garrison interior 16812 | -6/Garrison | Build established: Botlord-Tank 16823 | -6/Garrison | Discovered new exit (range 8) 16855 | -6/Garrison | Identified exit to Factory 17073 | -6/Garrison | Garrison Relay disabled 17203 | -6/Garrison | Entered Factory 17203 | -6/Factory | Accompanied by 1 ally 17812 | -6/Factory | Identified exit to Garrison 17812 | -6/Factory | Entered Garrison 17932 | -6/Garrison | Triggered checkpoint 17953 | -6/Garrison | Garrison Relay disabled 18051 | -6/Garrison | Triggered checkpoint 18069 | -6/Garrison | Spotted B-75 Beast 18101 | -6/Garrison | Build established: Bothacker-Tank 18101 | -6/Garrison | Destroyed B-75 Beast 18288 | -6/Garrison | Triggered checkpoint 18319 | -6/Garrison | Discovered new exit (range 8) 18366 | -6/Garrison | Triggered checkpoint 18420 | -6/Garrison | Lost 4 parts (1p1n1u1w) 18425 | -6/Garrison | Garrison Relay disabled 18691 | -6/Garrison | Triggered checkpoint 18729 | -6/Garrison | Garrison Relay disabled 18771 | -6/Garrison | Discovered new exit (range 3) 18774 | -6/Garrison | Identified exit to Factory 18803 | -6/Garrison | Expanded RIF knowledge: Zone Cloak 18851 | -6/Garrison | Expanded RIF knowledge: Zone Cloak 18889 | -6/Garrison | Entered Factory 18889 | -5/Factory | Evolved 2 slots: Power x1, Utility x1 19227 | -5/Factory | Build established: Botlord-Tank 19260 | -5/Factory | Identified exit to Garrison 19705 | -5/Factory | Entered Garrison 19786 | -5/Garrison | Triggered checkpoint 19849 | -5/Garrison | Garrison Relay disabled 20186 | -5/Garrison | Triggered checkpoint 20242 | -5/Garrison | Spotted B-75 Beast 20357 | -5/Garrison | Triggered checkpoint 20432 | -5/Garrison | Destroyed B-75 Beast 20538 | -5/Garrison | Discovered new exit (range 15) 20667 | -5/Garrison | Discovered new exit (range 9) 20681 | -5/Garrison | Triggered checkpoint 20738 | -5/Garrison | Garrison Relay disabled 20760 | -5/Garrison | Spotted Executioner 20812 | -5/Garrison | Triggered checkpoint 20953 | -5/Garrison | Triggered checkpoint 20970 | -5/Garrison | Discovered new exit (range 15) 21003 | -5/Garrison | Expanded RIF knowledge: Autooverride 21149 | -5/Garrison | Identified exit to Factory 21152 | -5/Garrison | Entered Factory 21152 | -4/Factory | Evolved 2 slots: Propulsion x1, Utility x1 21297 | -4/Factory | Fabricated M-36 Artificer? 21871 | -4/Factory | Spotted B-86 Titan 21962 | -4/Factory | Discovered new exit (range 69) 22269 | -4/Factory | Identified exit to Upper Caves 22450 | -4/Factory | Found Prototype Launcher 22450 | -4/Factory | Identified Com. Tesla Bomb Launcher 22459 | -4/Factory | Found Com. Tesla Bomb Launcher 22462 | -4/Factory | Found Com. Tesla Bomb Launcher 22469 | -4/Factory | Identified exit to Garrison 22469 | -4/Factory | Entered Garrison 22480 | -4/Garrison | Triggered checkpoint 22560 | -4/Garrison | Destroyed 9 combat bots 22573 | -4/Garrison | Build established: Tank 22749 | -4/Garrison | Spotted B-86 Titan 22783 | -4/Garrison | Destroyed B-86 Titan 22811 | -4/Garrison | Lost 3 allies 22847 | -4/Garrison | Triggered checkpoint 23089 | -4/Garrison | Discovered new exit (range 11) 23110 | -4/Garrison | Expanded RIF knowledge: Autoassimilate 23152 | -4/Garrison | Triggered checkpoint 23164 | -4/Garrison | System corruption reached 10% 23236 | -4/Garrison | Garrison Relay disabled 23305 | -4/Garrison | Identified exit to Research 23362 | -4/Garrison | System corruption reached 30% 23533 | -4/Garrison | Triggered checkpoint 23533 | -4/Garrison | Build established: Botlord-Tank 23586 | -4/Garrison | Discovered exit to Research (range 9) 23671 | -4/Garrison | Garrison Relay disabled 23736 | -4/Garrison | Entered Research 23736 | -3/Research | Evolved 2 slots: Power x1, Utility x1 23904 | -3/Research | Discovered new exit (range 13) 23990 | -3/Research | Identified exit to Quarantine 24080 | -3/Research | Lost 3 allies 24306 | -3/Research | Entered Quarantine 24306 | -3/Quarantine | Accompanied by 2 allies 24345 | -3/Quarantine | Found Alien Artifact 24352 | -3/Quarantine | Identified Dimensional Node Initializer 24352 | -3/Quarantine | Initialized slip node 24361 | -3/Quarantine | Found Alien Artifact 24375 | -3/Quarantine | Build established: Botlord-Skirmisher 24500 | -3/Quarantine | Cryocooling Duct disabled 24515 | -3/Quarantine | Ambient heat levels rising (+20) 24515 | -3/Quarantine | Non-combat units ordered to evacuate 25451 | -3/Quarantine | System corruption reached 10% 25571 | -3/Quarantine | Repaired Imp. Heavy Treads 25729 | -3/Quarantine | Found Alien Artifact 25744 | -3/Quarantine | Discovered new exit (range 7) 25751 | -3/Quarantine | Identified exit to Research 25819 | -3/Quarantine | Identified Transdimensional Reconstructor 25819 | -3/Quarantine | Warped through subspace to slip node 25832 | -3/Quarantine | Found Alien Artifact 25931 | -3/Quarantine | Found Alien Impact Weapon 26224 | -3/Quarantine | Entered Research 26224 | -2/Research | Evolved 2 slots: Power x1, Utility x1 26785 | -2/Research | Spotted B-90 Cyclops 26786 | -2/Research | Identified Hpw. Transdimensional Reconstructor 26786 | -2/Research | Warped through subspace 27867 | -2/Research | Identified exit to Garrison 27876 | -2/Research | Entered Garrison 27876 | -2/Garrison | Accompanied by 1 ally 27932 | -2/Garrison | Triggered checkpoint 27959 | -2/Garrison | System corruption reached 10% 28022 | -2/Garrison | Lost 4 parts (2p1u1w) 28081 | -2/Garrison | Destroyed 7 combat bots 28263 | -2/Garrison | Spotted B-90 Cyclops 28277 | -2/Garrison | Identified Core Stripper 28289 | -2/Garrison | Destroyed B-90 Cyclops 28367 | -2/Garrison | Triggered checkpoint 28434 | -2/Garrison | Discovered new exit (range 9) 28445 | -2/Garrison | Identified exit to Research 28451 | -2/Garrison | Build established: Generator-Tank 28481 | -2/Garrison | Rescued a captive Derelict 28526 | -2/Garrison | Triggered checkpoint 28580 | -2/Garrison | Garrison Relay disabled 28673 | -2/Garrison | Triggered checkpoint 28707 | -2/Garrison | Discovered exit to Research (range 5) 28786 | -2/Garrison | Entered Research 28786 | -2/Research | Accompanied by 4 allies 29297 | -2/Research | Lost 4 allies 29372 | -2/Research | Discovered new exit (range 5) 29377 | -2/Research | Identified exit to Testing 29523 | -2/Research | Discovered new exit (range 10) 29537 | -2/Research | Identified exit to Access 29752 | -2/Research | Entered Testing 29958 | -2/Testing | Garrison activated, responded to threat 30010 | -2/Testing | Destroyed 7 combat bots 30061 | -2/Testing | Found Prototype Ballistic Cannon 30061 | -2/Testing | Identified Perforator 30271 | -2/Testing | Discovered exit to Access (range 15) 30442 | -2/Testing | Found Prototype Ballistic Gun 30442 | -2/Testing | Identified Hyp. Multirail 30542 | -2/Testing | Found Prototype Hackware 30628 | -2/Testing | Found Prototype Energy Gun 30628 | -2/Testing | Identified Hyp. EM Gauss Rifle 30849 | -2/Testing | Spotted Fortress 30859 | -2/Testing | Destroyed Fortress 30881 | -2/Testing | Found Prototype Reactor 30881 | -2/Testing | Identified Vortex Chain Reactor 30916 | -2/Testing | Found Prototype Protection 30916 | -2/Testing | Identified Centrium Heavy Armor Plating 30921 | -2/Testing | Found Unknown Protection 30921 | -2/Testing | Identified Hvy. Insulated Plating 30931 | -2/Testing | Found Prototype Device 30931 | -2/Testing | Identified Exp. Force Field 30935 | -2/Testing | Found Prototype Device 30935 | -2/Testing | Identified Thermal Barrier 30939 | -2/Testing | Found Prototype Device 30939 | -2/Testing | Identified Exp. EM Shield 31091 | -2/Testing | Discovered new exit (range 5) 31091 | -2/Testing | Discovered new exit (range 6) 31096 | -2/Testing | Identified exit to Protoforge 31100 | -2/Testing | Identified exit to Section 7 31102 | -2/Testing | Entered Section 7 31257 | -2/Section 7 | Identified Ghost Barrier 31342 | -2/Section 7 | Spotted S7 Guard 31431 | -2/Section 7 | Found Alien Artifact 31431 | -2/Section 7 | Identified Integrated Mediator 31431 | -2/Section 7 | Installed Integrated Mediator, increased core attachment efficiency 31559 | -2/Section 7 | P-80 Master assimilated allied Enforcer 9j 31709 | -2/Section 7 | Spotted S7 Guard 31732 | -2/Section 7 | Destroyed S7 Guard 31796 | -2/Section 7 | Found Alien Artifact 31796 | -2/Section 7 | Identified Navigation Efficiency Matrix 31796 | -2/Section 7 | Installed Navigation Efficiency Matrix, process failed with unexpected side effects 31953 | -2/Section 7 | System corruption reached 30% 32243 | -2/Section 7 | Spotted Executioner 32243 | -2/Section 7 | Spotted Executioner 32265 | -2/Section 7 | Scanned by Researcher 32291 | -2/Section 7 | Destroyed Executioner 32293 | -2/Section 7 | Destroyed Executioner 32758 | -2/Section 7 | Intercept squad dispatched 32758 | -2/Section 7 | Spotted Tracker 32759 | -2/Section 7 | Spotted Tracker 32760 | -2/Section 7 | Spotted Combat Programmer 32761 | -2/Section 7 | Spotted Combat Programmer 32812 | -2/Section 7 | Core integrity fell below 50% 32828 | -2/Section 7 | Core integrity fell below 20% 32831 | -2/Section 7 | Destroyed by P-80 Master with Gamma Rifle Last Messages --------------- 32819_ Knocked back. 32820_ Ghost Barrier destroyed. 32821_ EMDS Slug penetrates X-82 Rainmaker. 32821_ Chain reaction triggered in Lgt. Particle Reactor. 32821_ Tracker destroyed. 32821_ Knocked back. 32823_ Penetrated by EMDS Slug. 32823_ Enh. Armored Heavy Treads destroyed. 32824_ P-80 Master resets X-82 Rainmaker, system corruption cleaned. 32824_ Rnf. Antimatter Reactor destroyed. 32824_ P-80 Master knocked back. 32824_ Adv. Heat Sink destroyed. 32826_ System corrupted: Matter fused (-10). 32826_ Penetrated by EMDS Slug. 32827_ H-81 Overseer destroyed. 32827_ Knocked back. 32830_ Critical hit (Burn: +37). 32830_ P-80 Master destroyed. Map ----- +----------------------------------------------------+ | | | | | | | | | | | | | | | | | | | | | | | | | | | | | | | | | | | | | | | | | | | ?????????????????????????????????????????????????? | | ???#########??????####?????????????????##########? | | ???#"""T"""#????### ###??????????###??# #? | | ??##""" """######## ###########;##"#### #? | | ??# * @ %=x## #? | | ### % ==%[ g p!%!; #? | | #" %= ! g%!!# #? | | "#" % [[%== p!%[x!!;# % ## | | "#" #######+############!;;;g;# ## | | "#" % # ###?????? ; ## + | | "# !* %%%### #????????? # ## ## | | "#" !* %%#?# "" #??????????# ######"##### | | "#" * #?# "" ""#??????????#!""""" = [ | | "#" #?# """"""#??????????# != | | ## ###?#"""""""#??????????#="""#" ###### | | ## %=#??#########??????????# "#### #????? | | ## %!##?????????????????????# #####/#????? | | ### = ###############????????# #?# # | | ]! #????????# #?# " | | ] % #????????#!#?# # | | !=[ #????????#%=?# ?# | | [[!! #????????#!!?# """"" # | | ##+######+##"########## #????????#! ??? """"? ? | | [ #=[![* #?????# #????????? ?? "!" ?# | | # ! !%% ##????# #????????? ?? ?"????? | | # = *= "#????# #????????? ?? ??????? | | ! # %[ "#????# ##???????? ??##??????? | | # "" ##????# ???????? ????????? | | """""" # " " #?????# ???????? ?????? | +----------------------------------------------------+ Best States ------------- Heat Dissipation 130 Energy Generation 101 Energy Capacity 1200 Matter Stores 300 Matter Capacity 300 Sight Range 20 Robot Scan Range 16 Terrain Scan Range 20 Terrain Scan Density 10 Jamming Range 16 Power Amplification 30 Additional Mass Support 9 Armor Coverage 1200 Resistance: KI 30 Resistance: EX 25 Resistance: EM 75 Core Shielding 20 Weapon Shielding 90 Evasion (%) 40 Core Analysis 6 Recoil Reduction 6 Offensive Hacking 10 Defensive Hacking 20 Relay Coupler Types 3 Relay Coupler Value 89 Authchip Count 2 Item Schematics ----------------- Huge Storage Unit | -10/Materials | Hacked Railgun | -6/Factory | Hacked Diametric Drive | -2/Section 7 | Archive Enh. Coil Gun | -2/Section 7 | Archive Robot Schematics ------------------ None Fabricated ------------ M-36 Artificer | x1 | -4/Factory | Preloaded, Authchip Repaired ---------- Lgt. Treads | 22% | -6/Factory Imp. Heavy Treads | 33% | -3/Quarantine Alien Tech Used ----------------- Dimensional Node Initializer Transdimensional Reconstructor High-powered Transdimensional Reconstructor Core Stripper Integrated Mediator Navigation Efficiency Matrix Achievements -------------- None Challenges ------------ None Game ------ Seed WardroneReinforcedGuard Manual? 0 Play Time 06:05:58 Cumulative 178.6 hours Start 2025.10.01 @ 15:30:52 End 2025.10.03 @ 23:56:19 Sessions 13 Manual Loads 0 Difficulty Rogue Special Mode None Game No. 55 Rogue 49 Adventurer 0 Explorer 6 Win Type - Total 10 Types 6/0/2/1/0/0/0/1/0/0 Lore% 75 Gallery% 65 Achievement% 64 Wizard Run 0 Options --------- Layout 1 ASCII 0 Keyboard 0 Movement Mouse Keybinds 0 Fullscreen 2 Font 24/Smallcaps Map View 50x35 Zoom Use 0% Tactical HUD 1 Map Filters NONE Filters NONE Steam 1 RUN: 82b58dd8-6a80-4d22-825a-1204315a9c87